[Event "Titled Tuesday Blitz August 17 2021"]
[White "Perez Gormaz, Matias"]
[Black "Seo, Jung Min"]
[WhiteFideId "3406342"]
[BlackFideId "1734687"]
[WhiteElo "2352"]
[BlackElo "2486"]
[Result "0-1"]
[Round "05"]
[TimeControl "180+1"]
[Date "2021.08.17"]
[WhiteClock "0:00:01"]
[BlackClock "0:00:51"]

1. e4 {[%clk 0:03:00]}  g6 {[%clk 0:02:58]} 2. d4 {[%clk 0:03:00]}  Bg7 {[%clk 0:02:59]} 3. Nf3 {[%clk 0:03:01]}  d6 {[%clk 0:02:59]} 4. c3 {[%clk 0:03:01]}  Nd7 {[%clk 0:02:57]} 5. Bc4 {[%clk 0:03:00]}  e6 {[%clk 0:02:50]} 6. O-O {[%clk 0:02:59]}  Ne7 {[%clk 0:02:49]} 7. Nbd2 {[%clk 0:02:57]}  b6 {[%clk 0:02:48]} 8. a4 {[%clk 0:02:56]}  a6 {[%clk 0:02:46]} 9. Re1 {[%clk 0:02:55]}  Bb7 {[%clk 0:02:46]} 10. Bd3 {[%clk 0:02:28]}  O-O {[%clk 0:02:45]} 11. Nf1 {[%clk 0:02:26]}  c5 {[%clk 0:02:45]} 12. Be3 {[%clk 0:02:10]}  Nc6 {[%clk 0:02:43]} 13. Qd2 {[%clk 0:02:03]}  Qc7 {[%clk 0:02:37]} 14. Rac1 {[%clk 0:02:01]}  Rfe8 {[%clk 0:02:35]} 15. Ng3 {[%clk 0:01:59]}  Nf6 {[%clk 0:02:27]} 16. Bh6 {[%clk 0:01:46]}  Qe7 {[%clk 0:02:19]} 17. Bg5 {[%clk 0:01:40]}  Qc7 {[%clk 0:02:18]} 18. Qf4 {[%clk 0:01:33]}  Nd7 {[%clk 0:02:15]} 19. Qh4 {[%clk 0:01:23]}  Rac8 {[%clk 0:01:59]} 20. Bh6 {[%clk 0:01:19]}  Qd8 {[%clk 0:01:58]} 21. Bg5 {[%clk 0:01:19]}  Qc7 {[%clk 0:01:57]} 22. Bh6 {[%clk 0:00:56]}  Qd8 {[%clk 0:01:55]} 23. Bg5 {[%clk 0:00:51]}  f6 {[%clk 0:01:55]} 24. Be3 {[%clk 0:00:50]}  Qe7 {[%clk 0:01:55]} 25. Bc4 {[%clk 0:00:39]}  Na5 {[%clk 0:01:52]} 26. Ba2 {[%clk 0:00:38]}  c4 {[%clk 0:01:47]} 27. Nd2 {[%clk 0:00:32]}  d5 {[%clk 0:01:46]} 28. exd5 {[%clk 0:00:28]}  exd5 {[%clk 0:01:40]} 29. Bb1 {[%clk 0:00:27]}  f5 {[%clk 0:01:32]} 30. Qxe7 {[%clk 0:00:21]}  Rxe7 {[%clk 0:01:32]} 31. Bg5 {[%clk 0:00:21]}  Ree8 {[%clk 0:01:30]} 32. Nf3 {[%clk 0:00:20]}  Bc6 {[%clk 0:01:26]} 33. Bc2 {[%clk 0:00:18]}  Nb3 {[%clk 0:01:21]} 34. Bxb3 {[%clk 0:00:15]}  cxb3 {[%clk 0:01:22]} 35. Ne2 {[%clk 0:00:14]}  Bxa4 {[%clk 0:01:19]} 36. Nf4 {[%clk 0:00:13]}  Bc6 {[%clk 0:01:19]} 37. Nd3 {[%clk 0:00:12]}  Bb5 {[%clk 0:01:14]} 38. Nb4 {[%clk 0:00:09]}  Bc4 {[%clk 0:01:13]} 39. Nd2 {[%clk 0:00:09]}  a5 {[%clk 0:01:05]} 40. Nxc4 {[%clk 0:00:09]}  dxc4 {[%clk 0:01:06]} 41. Nd5 {[%clk 0:00:09]}  Kf7 {[%clk 0:01:03]} 42. Ne3 {[%clk 0:00:01]}  h6 {[%clk 0:01:02]} 43. Bh4 {[%clk 0:00:01]}  g5 {[%clk 0:00:54]} 44. Nxf5 {[%clk 0:00:01]}  gxh4 {[%clk 0:00:54]} 45. Nd6+ {[%clk 0:00:01]}  Kf8 {[%clk 0:00:54]} 46. Nxe8 {[%clk 0:00:01]}  Rxe8 {[%clk 0:00:54]} 47. Rxe8+ {[%clk 0:00:02]}  Kxe8 {[%clk 0:00:55]} 48. Re1+ {[%clk 0:00:02]}  Kf7 {[%clk 0:00:54]} 49. Re4 {[%clk 0:00:01]}  b5 {[%clk 0:00:51]} 0-1


[Site "https://www.chess.com"]

[Event "Titled Tuesday Blitz August 17 2021"]
[White "Perez Rodriguez, Luis Manuel"]
[Black "Rodriguez Hernandez, Luis Daniel"]
[WhiteFideId "3503364"]
[BlackFideId "3506770"]
[WhiteElo "2429"]
[BlackElo "2133"]
[Result "0-1"]
[Round "05"]
[TimeControl "180+1"]
[Date "2021.08.17"]
[WhiteClock "0:01:33"]
[BlackClock "0:02:54"]

1. e4 {[%clk 0:03:00]}  e5 {[%clk 0:02:59]} 2. Nf3 {[%clk 0:03:01]}  Nc6 {[%clk 0:02:59]} 3. Bb5 {[%clk 0:03:01]}  a6 {[%clk 0:02:59]} 4. Ba4 {[%clk 0:03:01]}  Nf6 {[%clk 0:02:59]} 5. O-O {[%clk 0:03:01]}  b5 {[%clk 0:03:00]} 6. Bb3 {[%clk 0:02:59]}  Bb7 {[%clk 0:03:01]} 7. c3 {[%clk 0:02:53]}  Nxe4 {[%clk 0:03:00]} 8. d4 {[%clk 0:02:52]}  exd4 {[%clk 0:03:01]} 9. Re1 {[%clk 0:02:45]}  d5 {[%clk 0:03:02]} 10. Ng5 {[%clk 0:02:27]}  Qf6 {[%clk 0:03:02]} 11. Bxd5 {[%clk 0:02:12]}  Qxf2+ {[%clk 0:03:01]} 12. Kh1 {[%clk 0:02:11]}  O-O-O {[%clk 0:02:59]} 13. Nxe4 {[%clk 0:02:00]}  Qf5 {[%clk 0:02:59]} 14. c4 {[%clk 0:01:42]}  bxc4 {[%clk 0:02:59]} 15. Bxc4 {[%clk 0:01:43]}  Ne5 {[%clk 0:02:59]} 16. Nbd2 {[%clk 0:01:34]}  Nxc4 {[%clk 0:02:54]} 17. Nxc4 {[%clk 0:01:33]}  Bxe4 {[%clk 0:02:54]} 0-1


[Site "https://www.chess.com"]

[Event "Titled Tuesday Blitz August 17 2021"]
[White "Pichot, Alan"]
[Black "Garcia Garcia, Alejandro"]
[WhiteFideId "110973"]
[BlackFideId "3516334"]
[WhiteElo "2622"]
[BlackElo "2131"]
[Result "1/2-1/2"]
[Round "05"]
[TimeControl "180+1"]
[Date "2021.08.17"]
[WhiteClock "0:00:10"]
[BlackClock "0:00:08"]

1. e4 {[%clk 0:03:00]}  c5 {[%clk 0:02:59]} 2. Nf3 {[%clk 0:03:00]}  e6 {[%clk 0:03:00]} 3. d4 {[%clk 0:03:00]}  cxd4 {[%clk 0:03:01]} 4. Nxd4 {[%clk 0:03:01]}  Nc6 {[%clk 0:03:01]} 5. Nc3 {[%clk 0:03:01]}  Nf6 {[%clk 0:03:01]} 6. a3 {[%clk 0:02:55]}  Be7 {[%clk 0:03:01]} 7. Be2 {[%clk 0:02:53]}  O-O {[%clk 0:03:00]} 8. Be3 {[%clk 0:02:53]}  d5 {[%clk 0:03:00]} 9. exd5 {[%clk 0:02:48]}  Nxd5 {[%clk 0:03:01]} 10. Nxd5 {[%clk 0:02:48]}  Qxd5 {[%clk 0:03:02]} 11. Bf3 {[%clk 0:02:48]}  Qa5+ {[%clk 0:03:02]} 12. b4 {[%clk 0:02:33]}  Qc7 {[%clk 0:03:01]} 13. Nxc6 {[%clk 0:02:20]}  bxc6 {[%clk 0:03:00]} 14. c4 {[%clk 0:02:21]}  Bf6 {[%clk 0:02:22]} 15. Ra2 {[%clk 0:01:35]}  Bc3+ {[%clk 0:02:04]} 16. Bd2 {[%clk 0:01:35]}  Qe5+ {[%clk 0:01:43]} 17. Qe2 {[%clk 0:01:08]}  Bxd2+ {[%clk 0:01:42]} 18. Rxd2 {[%clk 0:01:09]}  Qa1+ {[%clk 0:01:41]} 19. Qd1 {[%clk 0:01:09]}  Qxa3 {[%clk 0:01:41]} 20. b5 {[%clk 0:01:10]}  Qc5 {[%clk 0:00:48]} 21. O-O {[%clk 0:01:02]}  Bb7 {[%clk 0:00:41]} 22. Rd7 {[%clk 0:00:57]}  Rab8 {[%clk 0:00:40]} 23. Qd3 {[%clk 0:00:28]}  a6 {[%clk 0:00:21]} 24. h3 {[%clk 0:00:17]}  axb5 {[%clk 0:00:20]} 25. cxb5 {[%clk 0:00:18]}  Ba8 {[%clk 0:00:20]} 26. bxc6 {[%clk 0:00:06]}  Bxc6 {[%clk 0:00:20]} 27. Rc7 {[%clk 0:00:06]}  Rbc8 {[%clk 0:00:20]} 28. Rxc8 {[%clk 0:00:03]}  Rxc8 {[%clk 0:00:21]} 29. Bxc6 {[%clk 0:00:04]}  Qxc6 {[%clk 0:00:21]} 30. Rd1 {[%clk 0:00:04]}  g6 {[%clk 0:00:21]} 31. Qd4 {[%clk 0:00:04]}  h5 {[%clk 0:00:21]} 32. Qf6 {[%clk 0:00:03]}  Rf8 {[%clk 0:00:18]} 33. Re1 {[%clk 0:00:01]}  Qc5 {[%clk 0:00:17]} 34. Qe5 {[%clk 0:00:02]}  Qxe5 {[%clk 0:00:17]} 35. Rxe5 {[%clk 0:00:02]}  Kg7 {[%clk 0:00:17]} 36. Ra5 {[%clk 0:00:03]}  Kf6 {[%clk 0:00:18]} 37. h4 {[%clk 0:00:03]}  Rb8 {[%clk 0:00:18]} 38. g3 {[%clk 0:00:03]}  Rb7 {[%clk 0:00:18]} 39. Kg2 {[%clk 0:00:03]}  e5 {[%clk 0:00:18]} 40. Ra8 {[%clk 0:00:04]}  Kf5 {[%clk 0:00:18]} 41. Ra6 {[%clk 0:00:04]}  f6 {[%clk 0:00:18]} 42. Rc6 {[%clk 0:00:05]}  Rb4 {[%clk 0:00:18]} 43. Ra6 {[%clk 0:00:05]}  Rc4 {[%clk 0:00:18]} 44. Ra5 {[%clk 0:00:05]}  Rc3 {[%clk 0:00:18]} 45. Ra6 {[%clk 0:00:06]}  Rb3 {[%clk 0:00:18]} 46. Ra5 {[%clk 0:00:06]}  g5 {[%clk 0:00:18]} 47. hxg5 {[%clk 0:00:06]}  Kxg5 {[%clk 0:00:19]} 48. Ra8 {[%clk 0:00:06]}  Rb7 {[%clk 0:00:14]} 49. Rg8+ {[%clk 0:00:06]}  Kh6 {[%clk 0:00:15]} 50. Rh8+ {[%clk 0:00:07]}  Kg6 {[%clk 0:00:14]} 51. Ra8 {[%clk 0:00:08]}  Rb4 {[%clk 0:00:12]} 52. Rg8+ {[%clk 0:00:08]}  Kf7 {[%clk 0:00:12]} 53. Rh8 {[%clk 0:00:08]}  Kg6 {[%clk 0:00:12]} 54. Rg8+ {[%clk 0:00:08]}  Kh6 {[%clk 0:00:12]} 55. Rh8+ {[%clk 0:00:09]}  Kg5 {[%clk 0:00:10]} 56. Rg8+ {[%clk 0:00:09]}  Kf5 {[%clk 0:00:10]} 57. Rh8 {[%clk 0:00:09]}  Kg5 {[%clk 0:00:08]} 58. Rg8+ {[%clk 0:00:10]}  Kh6 {[%clk 0:00:08]} 59. Rh8+ {[%clk 0:00:10]}  Kg6 {[%clk 0:00:08]} 60. Rg8+ {[%clk 0:00:10]} 1/2-1/2


[Site "https://www.chess.com"]

[Event "Titled Tuesday Blitz August 17 2021"]
[White "Piesik, Piotr"]
[Black "Chernov, Mikhail"]
[WhiteFideId "1136194"]
[BlackFideId "24143170"]
[WhiteElo "2395"]
[BlackElo "2244"]
[Result "1-0"]
[Round "05"]
[TimeControl "180+1"]
[Date "2021.08.18"]
[WhiteClock "0:00:49"]
[BlackClock "0:00:15"]

1. Nf3 {[%clk 0:02:59]}  c5 {[%clk 0:02:55]} 2. g3 {[%clk 0:02:59]}  Nc6 {[%clk 0:02:54]} 3. Bg2 {[%clk 0:03:00]}  e5 {[%clk 0:02:53]} 4. O-O {[%clk 0:03:01]}  g6 {[%clk 0:02:53]} 5. c4 {[%clk 0:03:01]}  Bg7 {[%clk 0:02:54]} 6. Nc3 {[%clk 0:03:01]}  d6 {[%clk 0:02:55]} 7. Ne1 {[%clk 0:02:58]}  Be6 {[%clk 0:02:55]} 8. d3 {[%clk 0:02:55]}  Nge7 {[%clk 0:02:55]} 9. Nc2 {[%clk 0:02:54]}  d5 {[%clk 0:02:55]} 10. cxd5 {[%clk 0:02:54]}  Nxd5 {[%clk 0:02:56]} 11. Ne3 {[%clk 0:02:53]}  Nde7 {[%clk 0:02:57]} 12. Nc4 {[%clk 0:02:50]}  O-O {[%clk 0:02:54]} 13. f4 {[%clk 0:02:50]}  Rb8 {[%clk 0:02:39]} 14. Nxe5 {[%clk 0:02:46]}  Nxe5 {[%clk 0:02:40]} 15. fxe5 {[%clk 0:02:46]}  Bxe5 {[%clk 0:02:41]} 16. Bh6 {[%clk 0:02:46]}  Bg7 {[%clk 0:02:39]} 17. Bxg7 {[%clk 0:02:46]}  Kxg7 {[%clk 0:02:40]} 18. Qd2 {[%clk 0:02:45]}  Nf5 {[%clk 0:02:29]} 19. Ne4 {[%clk 0:02:44]}  Qd4+ {[%clk 0:02:26]} 20. Kh1 {[%clk 0:02:43]}  Ne3 {[%clk 0:02:27]} 21. Rf4 {[%clk 0:02:37]}  Nxg2 {[%clk 0:02:22]} 22. Kxg2 {[%clk 0:02:38]}  Rbd8 {[%clk 0:02:09]} 23. Rh4 {[%clk 0:02:06]}  h5 {[%clk 0:01:52]} 24. Rxh5 {[%clk 0:02:06]}  Rh8 {[%clk 0:01:41]} 25. Rxh8 {[%clk 0:02:02]}  Rxh8 {[%clk 0:01:42]} 26. Qc3 {[%clk 0:01:58]}  Bh3+ {[%clk 0:01:22]} 27. Kf3 {[%clk 0:01:56]}  f5 {[%clk 0:01:06]} 28. Qxd4+ {[%clk 0:01:53]}  cxd4 {[%clk 0:01:07]} 29. Nf2 {[%clk 0:01:53]}  Bg4+ {[%clk 0:00:57]} 30. Nxg4 {[%clk 0:01:53]}  fxg4+ {[%clk 0:00:58]} 31. Kxg4 {[%clk 0:01:54]}  Rxh2 {[%clk 0:00:58]} 32. Kf3 {[%clk 0:01:54]}  Rh5 {[%clk 0:00:54]} 33. Rc1 {[%clk 0:01:53]}  Rb5 {[%clk 0:00:53]} 34. b3 {[%clk 0:01:52]}  Kf6 {[%clk 0:00:53]} 35. Rc4 {[%clk 0:01:50]}  Ke5 {[%clk 0:00:53]} 36. Kg4 {[%clk 0:01:45]}  Kd5 {[%clk 0:00:42]} 37. Kg5 {[%clk 0:01:44]}  Rb6 {[%clk 0:00:42]} 38. b4 {[%clk 0:01:41]}  Re6 {[%clk 0:00:40]} 39. Rc5+ {[%clk 0:01:36]}  Kd6 {[%clk 0:00:40]} 40. Rc2 {[%clk 0:01:36]}  b6 {[%clk 0:00:36]} 41. a4 {[%clk 0:01:34]}  Kd5 {[%clk 0:00:30]} 42. b5 {[%clk 0:01:32]}  Ke5 {[%clk 0:00:18]} 43. Kg4 {[%clk 0:01:09]}  Kd5 {[%clk 0:00:16]} 44. Kf3 {[%clk 0:01:08]}  Re3+ {[%clk 0:00:17]} 45. Kf2 {[%clk 0:01:08]}  Re6 {[%clk 0:00:17]} 46. Rc7 {[%clk 0:01:06]}  Rf6+ {[%clk 0:00:17]} 47. Ke1 {[%clk 0:01:06]}  Rf5 {[%clk 0:00:15]} 48. Rxa7 {[%clk 0:01:04]}  Kc5 {[%clk 0:00:16]} 49. Rc7+ {[%clk 0:01:02]}  Kb4 {[%clk 0:00:16]} 50. Rc6 {[%clk 0:01:03]}  Kxa4 {[%clk 0:00:13]} 51. Rxb6 {[%clk 0:01:03]}  Rg5 {[%clk 0:00:13]} 52. Kf2 {[%clk 0:01:00]}  Rf5+ {[%clk 0:00:13]} 53. Kg2 {[%clk 0:01:00]}  Re5 {[%clk 0:00:13]} 54. Kf3 {[%clk 0:01:01]}  Re3+ {[%clk 0:00:13]} 55. Kf2 {[%clk 0:01:00]}  Re5 {[%clk 0:00:13]} 56. Rxg6 {[%clk 0:01:00]}  Kxb5 {[%clk 0:00:14]} 57. g4 {[%clk 0:00:57]}  Kc5 {[%clk 0:00:15]} 58. Kf3 {[%clk 0:00:57]}  Re3+ {[%clk 0:00:14]} 59. Kf2 {[%clk 0:00:56]}  Kd5 {[%clk 0:00:15]} 60. Rf6 {[%clk 0:00:56]}  Re8 {[%clk 0:00:11]} 61. Rf5+ {[%clk 0:00:55]}  Kd6 {[%clk 0:00:11]} 62. Rf3 {[%clk 0:00:51]}  Rg8 {[%clk 0:00:10]} 63. Rf4 {[%clk 0:00:48]}  Ke5 {[%clk 0:00:11]} 64. Re4+ {[%clk 0:00:48]}  Kd5 {[%clk 0:00:12]} 65. Kg3 {[%clk 0:00:48]}  Rg7 {[%clk 0:00:11]} 66. Kh4 {[%clk 0:00:48]}  Rg8 {[%clk 0:00:12]} 67. g5 {[%clk 0:00:48]}  Rh8+ {[%clk 0:00:12]} 68. Kg4 {[%clk 0:00:48]}  Rg8 {[%clk 0:00:13]} 69. Kh5 {[%clk 0:00:48]}  Rh8+ {[%clk 0:00:13]} 70. Kg6 {[%clk 0:00:49]}  Rg8+ {[%clk 0:00:14]} 71. Kf6 {[%clk 0:00:49]}  Rf8+ {[%clk 0:00:15]} 72. Kg7 {[%clk 0:00:49]} 1-0


[Site "https://www.chess.com"]

[Event "Titled Tuesday Blitz August 17 2021"]
[White "Preotu, Razvan"]
[Black "Tari, Aryan"]
[WhiteFideId "2613280"]
[BlackFideId "1510045"]
[WhiteElo "2407"]
[BlackElo "2656"]
[Result "0-1"]
[Round "05"]
[TimeControl "180+1"]
[Date "2021.08.17"]
[WhiteClock "0:00:07"]
[BlackClock "0:00:08"]

1. e4 {[%clk 0:03:00]}  c6 {[%clk 0:02:52]} 2. Nc3 {[%clk 0:03:00]}  d5 {[%clk 0:02:52]} 3. Nf3 {[%clk 0:03:00]}  dxe4 {[%clk 0:02:45]} 4. Nxe4 {[%clk 0:03:01]}  Nf6 {[%clk 0:02:46]} 5. Qe2 {[%clk 0:03:01]}  Nxe4 {[%clk 0:02:38]} 6. Qxe4 {[%clk 0:03:02]}  Nd7 {[%clk 0:02:38]} 7. d4 {[%clk 0:02:49]}  Nf6 {[%clk 0:02:35]} 8. Qf4 {[%clk 0:02:49]}  g6 {[%clk 0:02:32]} 9. Bc4 {[%clk 0:02:34]}  Bg7 {[%clk 0:02:31]} 10. O-O {[%clk 0:02:34]}  O-O {[%clk 0:02:31]} 11. Re1 {[%clk 0:02:28]}  Nd5 {[%clk 0:02:30]} 12. Qh4 {[%clk 0:02:27]}  Qd6 {[%clk 0:01:52]} 13. c3 {[%clk 0:02:19]}  Bf6 {[%clk 0:01:17]} 14. Ng5 {[%clk 0:01:56]}  h5 {[%clk 0:01:17]} 15. Qg3 {[%clk 0:01:01]}  Qxg3 {[%clk 0:01:11]} 16. hxg3 {[%clk 0:01:02]}  Bf5 {[%clk 0:01:11]} 17. f3 {[%clk 0:00:51]}  b5 {[%clk 0:01:09]} 18. Bb3 {[%clk 0:00:49]}  a5 {[%clk 0:00:48]} 19. Ne4 {[%clk 0:00:48]}  a4 {[%clk 0:00:41]} 20. Bxd5 {[%clk 0:00:41]}  cxd5 {[%clk 0:00:42]} 21. Nxf6+ {[%clk 0:00:38]}  exf6 {[%clk 0:00:43]} 22. a3 {[%clk 0:00:35]}  g5 {[%clk 0:00:40]} 23. Bd2 {[%clk 0:00:25]}  Kg7 {[%clk 0:00:38]} 24. Kf2 {[%clk 0:00:26]}  Kg6 {[%clk 0:00:38]} 25. Re7 {[%clk 0:00:26]}  Be6 {[%clk 0:00:37]} 26. Re1 {[%clk 0:00:26]}  Rfe8 {[%clk 0:00:34]} 27. Rb7 {[%clk 0:00:25]}  Rab8 {[%clk 0:00:33]} 28. Rc7 {[%clk 0:00:24]}  Rec8 {[%clk 0:00:32]} 29. Ra7 {[%clk 0:00:22]}  Rh8 {[%clk 0:00:30]} 30. Rc7 {[%clk 0:00:16]}  h4 {[%clk 0:00:30]} 31. gxh4 {[%clk 0:00:17]}  Rxh4 {[%clk 0:00:30]} 32. Kg3 {[%clk 0:00:09]}  f5 {[%clk 0:00:25]} 33. f4 {[%clk 0:00:04]}  Rg4+ {[%clk 0:00:25]} 34. Kf3 {[%clk 0:00:03]}  Rh8 {[%clk 0:00:13]} 35. fxg5 {[%clk 0:00:03]}  Re4 {[%clk 0:00:14]} 36. Rxe4 {[%clk 0:00:02]}  fxe4+ {[%clk 0:00:14]} 37. Kg3 {[%clk 0:00:03]}  Rh1 {[%clk 0:00:13]} 38. Rb7 {[%clk 0:00:02]}  Rd1 {[%clk 0:00:12]} 39. Bf4 {[%clk 0:00:02]}  Kf5 {[%clk 0:00:12]} 40. Be3 {[%clk 0:00:01]}  Re1 {[%clk 0:00:06]} 41. Kf2 {[%clk 0:00:02]}  Rb1 {[%clk 0:00:05]} 42. Rxb5 {[%clk 0:00:03]}  Kg4 {[%clk 0:00:06]} 43. Rb7 {[%clk 0:00:02]}  Bf5 {[%clk 0:00:06]} 44. Rb6 {[%clk 0:00:02]}  Bg6 {[%clk 0:00:06]} 45. Rb5 {[%clk 0:00:03]}  Bf5 {[%clk 0:00:05]} 46. Rb6 {[%clk 0:00:02]}  Rd1 {[%clk 0:00:05]} 47. Ke2 {[%clk 0:00:01]}  Rh1 {[%clk 0:00:04]} 48. Kf2 {[%clk 0:00:02]}  Be6 {[%clk 0:00:05]} 49. Rb8 {[%clk 0:00:02]}  Rb1 {[%clk 0:00:05]} 50. g6 {[%clk 0:00:03]}  fxg6 {[%clk 0:00:05]} 51. Rb6 {[%clk 0:00:04]}  Bf5 {[%clk 0:00:05]} 52. Rb5 {[%clk 0:00:04]}  g5 {[%clk 0:00:05]} 53. Rb4 {[%clk 0:00:05]}  Kh5 {[%clk 0:00:05]} 54. Kg3 {[%clk 0:00:05]}  Re1 {[%clk 0:00:05]} 55. Bf2 {[%clk 0:00:06]}  Rd1 {[%clk 0:00:05]} 56. Rxa4 {[%clk 0:00:06]}  Rd3+ {[%clk 0:00:06]} 57. Kh2 {[%clk 0:00:06]}  e3 {[%clk 0:00:06]} 58. g3 {[%clk 0:00:07]}  exf2 {[%clk 0:00:07]} 59. Kg2 {[%clk 0:00:08]}  Rd2 {[%clk 0:00:07]} 60. Ra7 {[%clk 0:00:06]}  Be4+ {[%clk 0:00:07]} 61. Kf1 {[%clk 0:00:06]}  Bd3+ {[%clk 0:00:08]} 62. Kg2 {[%clk 0:00:07]}  f1=Q# {[%clk 0:00:08]} 0-1


[Site "https://www.chess.com"]

[Event "Titled Tuesday Blitz August 17 2021"]
[White "Rastbod, Ali"]
[Black "Koellner, Ruben Gideon"]
[WhiteFideId "12567477"]
[BlackFideId "12993093"]
[WhiteElo "2226"]
[BlackElo "2512"]
[Result "0-1"]
[Round "05"]
[TimeControl "180+1"]
[Date "2021.08.17"]
[WhiteClock "0:00:02"]
[BlackClock "0:00:19"]

1. c4 {[%clk 0:03:00]}  d6 {[%clk 0:02:59]} 2. d4 {[%clk 0:03:00]}  e5 {[%clk 0:02:58]} 3. Nf3 {[%clk 0:03:01]}  e4 {[%clk 0:02:58]} 4. Ng5 {[%clk 0:03:01]}  f5 {[%clk 0:02:58]} 5. Nc3 {[%clk 0:03:01]}  Be7 {[%clk 0:02:58]} 6. Nh3 {[%clk 0:03:02]}  Nf6 {[%clk 0:02:58]} 7. Bg5 {[%clk 0:03:01]}  O-O {[%clk 0:02:58]} 8. Nf4 {[%clk 0:02:58]}  c6 {[%clk 0:02:57]} 9. e3 {[%clk 0:02:58]}  Na6 {[%clk 0:02:57]} 10. h4 {[%clk 0:02:57]}  Nc7 {[%clk 0:02:56]} 11. d5 {[%clk 0:02:48]}  c5 {[%clk 0:02:54]} 12. a3 {[%clk 0:02:36]}  a6 {[%clk 0:02:47]} 13. b4 {[%clk 0:02:31]}  b6 {[%clk 0:02:45]} 14. Be2 {[%clk 0:02:26]}  h6 {[%clk 0:02:43]} 15. Bxf6 {[%clk 0:02:25]}  Bxf6 {[%clk 0:02:44]} 16. Qb3 {[%clk 0:02:22]}  Bd7 {[%clk 0:02:31]} 17. g3 {[%clk 0:01:44]}  Qe8 {[%clk 0:02:14]} 18. Rc1 {[%clk 0:01:08]}  g6 {[%clk 0:02:01]} 19. Kf1 {[%clk 0:00:57]}  Kg7 {[%clk 0:02:00]} 20. Kg2 {[%clk 0:00:50]}  Rb8 {[%clk 0:01:55]} 21. h5 {[%clk 0:00:41]}  g5 {[%clk 0:01:50]} 22. Ng6 {[%clk 0:00:41]}  Rg8 {[%clk 0:01:41]} 23. Qc2 {[%clk 0:00:31]}  Qf7 {[%clk 0:01:33]} 24. g4 {[%clk 0:00:21]}  Bxc3 {[%clk 0:01:28]} 25. Qxc3+ {[%clk 0:00:18]}  Qf6 {[%clk 0:01:29]} 26. Ne7 {[%clk 0:00:07]}  Rgf8 {[%clk 0:01:18]} 27. gxf5 {[%clk 0:00:03]}  Qxc3 {[%clk 0:01:12]} 28. Rxc3 {[%clk 0:00:04]}  Rf7 {[%clk 0:01:10]} 29. Nc6 {[%clk 0:00:04]}  Rbf8 {[%clk 0:01:05]} 30. Bg4 {[%clk 0:00:03]}  Bxf5 {[%clk 0:01:05]} 31. Bxf5 {[%clk 0:00:03]}  Rxf5 {[%clk 0:01:05]} 32. Rc2 {[%clk 0:00:04]}  Ne8 {[%clk 0:00:59]} 33. bxc5 {[%clk 0:00:04]}  bxc5 {[%clk 0:00:58]} 34. Rb1 {[%clk 0:00:05]}  R5f7 {[%clk 0:00:57]} 35. Rb8 {[%clk 0:00:04]}  Nf6 {[%clk 0:00:55]} 36. Rxf8 {[%clk 0:00:05]}  Rxf8 {[%clk 0:00:52]} 37. Rb2 {[%clk 0:00:06]}  Nxh5 {[%clk 0:00:48]} 38. Rb6 {[%clk 0:00:06]}  Nf6 {[%clk 0:00:46]} 39. Rxa6 {[%clk 0:00:06]}  Ng4 {[%clk 0:00:46]} 40. Ra7+ {[%clk 0:00:05]}  Kg6 {[%clk 0:00:39]} 41. Ne7+ {[%clk 0:00:05]}  Kh5 {[%clk 0:00:39]} 42. Rd7 {[%clk 0:00:02]}  Rxf2+ {[%clk 0:00:39]} 43. Kg1 {[%clk 0:00:02]}  Kh4 {[%clk 0:00:18]} 44. Rxd6 {[%clk 0:00:02]}  Kg3 {[%clk 0:00:19]} 0-1


[Site "https://www.chess.com"]

[Event "Titled Tuesday Blitz August 17 2021"]
[White "Sadykov, Ramil"]
[Black "Obregon, Andres Carlos"]
[WhiteFideId "24113590"]
[BlackFideId "111724"]
[WhiteElo "2300"]
[BlackElo "2572"]
[Result "0-1"]
[Round "05"]
[TimeControl "180+1"]
[Date "2021.08.17"]
[WhiteClock "0:00:01"]
[BlackClock "0:01:25"]

1. d4 {[%clk 0:03:00]}  Nf6 {[%clk 0:02:56]} 2. Nc3 {[%clk 0:02:59]}  d5 {[%clk 0:02:56]} 3. Bf4 {[%clk 0:02:58]}  a6 {[%clk 0:02:55]} 4. e3 {[%clk 0:02:55]}  c5 {[%clk 0:02:55]} 5. Nf3 {[%clk 0:02:55]}  cxd4 {[%clk 0:02:54]} 6. exd4 {[%clk 0:02:56]}  Nc6 {[%clk 0:02:54]} 7. Ne5 {[%clk 0:02:56]}  e6 {[%clk 0:02:41]} 8. Ne2 {[%clk 0:02:33]}  Nxe5 {[%clk 0:02:33]} 9. dxe5 {[%clk 0:02:24]}  Ne4 {[%clk 0:02:28]} 10. f3 {[%clk 0:02:11]}  Nc5 {[%clk 0:02:28]} 11. Nd4 {[%clk 0:02:10]}  Qb6 {[%clk 0:02:25]} 12. Rb1 {[%clk 0:01:28]}  g6 {[%clk 0:02:25]} 13. c3 {[%clk 0:01:26]}  Bg7 {[%clk 0:02:24]} 14. Qd2 {[%clk 0:01:05]}  Nd7 {[%clk 0:02:20]} 15. Bh6 {[%clk 0:00:52]}  Bxe5 {[%clk 0:02:17]} 16. Bd3 {[%clk 0:00:41]}  Bxd4 {[%clk 0:02:09]} 17. cxd4 {[%clk 0:00:42]}  Qxd4 {[%clk 0:02:10]} 18. Be3 {[%clk 0:00:34]}  Qe5 {[%clk 0:02:09]} 19. O-O {[%clk 0:00:33]}  O-O {[%clk 0:02:06]} 20. Rbe1 {[%clk 0:00:30]}  Qd6 {[%clk 0:02:02]} 21. h4 {[%clk 0:00:21]}  e5 {[%clk 0:01:59]} 22. h5 {[%clk 0:00:18]}  Nf6 {[%clk 0:01:57]} 23. Bh6 {[%clk 0:00:08]}  Re8 {[%clk 0:01:43]} 24. Qg5 {[%clk 0:00:06]}  Nxh5 {[%clk 0:01:41]} 25. g4 {[%clk 0:00:02]}  Ng7 {[%clk 0:01:33]} 26. f4 {[%clk 0:00:01]}  e4 {[%clk 0:01:32]} 27. f5 {[%clk 0:00:02]}  Bd7 {[%clk 0:01:26]} 28. f6 {[%clk 0:00:01]}  Ne6 {[%clk 0:01:25]} 0-1


[Site "https://www.chess.com"]